[Event "*** Titled Tuesday 3|2 Blitz"]
[Site "Chess.com"]
[Date "2016.10.04"]
[Round "6"]
[White "Malev212"]
[Black "Mugzyyy"]
[Result "1-0"]
[WhiteElo "2347"]
[BlackElo "2445"]
[TimeControl "180+2"]
[EndTime "12:14:35 PDT"]
[Termination "Malev212 won by resignation"]

1. Nf3 {[%clk 0:02:58.6]} 1... Nc6 {[%clk 0:02:55.7]} 2. g3 {[%clk 0:02:58.9]}
2... e5 {[%clk 0:02:56]} 3. d3 {[%clk 0:02:59.8]} 3... f5 {[%clk 0:02:56]} 4.
Bg2 {[%clk 0:03:01.4]} 4... Nf6 {[%clk 0:02:57]} 5. O-O {[%clk 0:03:02.8]} 5...
g6 {[%clk 0:02:57.3]} 6. Nc3 {[%clk 0:03:00]} 6... Bg7 {[%clk 0:02:56.9]} 7. e4
{[%clk 0:03:01.4]} 7... O-O {[%clk 0:02:57.7]} 8. exf5 {[%clk 0:03:00.5]} 8...
gxf5 {[%clk 0:02:58.5]} 9. d4 {[%clk 0:03:01.5]} 9... e4 {[%clk 0:02:58.6]} 10.
Nh4 {[%clk 0:03:01.7]} 10... d6 {[%clk 0:02:57.5]} 11. d5 {[%clk 0:02:56.8]}
11... Ne5 {[%clk 0:02:58.2]} 12. f3 {[%clk 0:02:57.5]} 12... exf3 {[%clk
0:02:53.5]} 13. Nxf3 {[%clk 0:02:58.4]} 13... c6 {[%clk 0:02:52.3]} 14. Nh4
{[%clk 0:02:52.1]} 14... Nfg4 {[%clk 0:02:50.4]} 15. Kh1 {[%clk 0:02:49.3]}
15... c5 {[%clk 0:02:46.3]} 16. h3 {[%clk 0:02:48.8]} 16... Nh6 {[%clk
0:02:43.7]} 17. Ne2 {[%clk 0:02:48.6]} 17... b5 {[%clk 0:02:40.9]} 18. Nf4
{[%clk 0:02:48.7]} 18... Qf6 {[%clk 0:02:19.2]} 19. Nh5 {[%clk 0:02:43.3]} 19...
Qf7 {[%clk 0:02:19.9]} 20. Bf4 {[%clk 0:02:39.1]} 20... Bd7 {[%clk 0:02:14.1]}
21. Nxg7 {[%clk 0:02:33.1]} 21... Qxg7 {[%clk 0:02:15.4]} 22. Qh5 {[%clk
0:02:32.5]} 22... Nhf7 {[%clk 0:02:13.1]} 23. Nxf5 {[%clk 0:02:32.1]} 23... Bxf5
{[%clk 0:02:14.3]} 24. Qxf5 {[%clk 0:02:32.6]} 24... Rae8 {[%clk 0:02:15.9]} 25.
Rae1 {[%clk 0:02:26.5]} 25... Re7 {[%clk 0:02:11.9]} 26. Qh5 {[%clk 0:02:19.5]}
26... Rfe8 {[%clk 0:02:11.6]} 27. b3 {[%clk 0:02:17.8]} 27... Ng6 {[%clk
0:02:08.5]} 28. Re6 {[%clk 0:02:13.2]} 28... Rxe6 {[%clk 0:01:59]} 29. dxe6
{[%clk 0:02:13.2]} 29... Rxe6 {[%clk 0:02:00.5]} 30. Bd5 {[%clk 0:02:12]} 30...
Rf6 {[%clk 0:02:01.8]} 31. Re1 {[%clk 0:02:07.4]} 31... Kf8 {[%clk 0:01:57.1]}
32. Qe2 {[%clk 0:01:24]} 32... Nge5 {[%clk 0:01:30.3]} 33. Qxb5 {[%clk 0:01:22]}
33... Qg6 {[%clk 0:01:25.3]} 34. Qb8+ {[%clk 0:01:12.7]} 34... Kg7 {[%clk
0:01:25.5]} 35. Qxa7 {[%clk 0:01:13.1]} 35... Qh5 {[%clk 0:01:11.9]} 36. Kg2
{[%clk 0:01:06]} 36... Ng6 {[%clk 0:01:12.7]} 37. Bf3 {[%clk 0:00:38.4]} 37...
Qf5 {[%clk 0:01:10.9]} 38. Re2 {[%clk 0:00:21.3]} 38... Nxf4+ {[%clk 0:01:06.5]}
39. gxf4 {[%clk 0:00:22]} 39... Qxf4 {[%clk 0:01:08.1]} 40. Qb7 {[%clk
0:00:19.5]} 40... Rg6+ {[%clk 0:01:03.6]} 41. Kf1 {[%clk 0:00:13.4]} 41... Qd4
{[%clk 0:00:54.5]} 42. Rf2 {[%clk 0:00:11]} 42... Qa1+ {[%clk 0:00:37.9]} 43.
Ke2 {[%clk 0:00:11.1]} 43... Qc1 {[%clk 0:00:37.4]} 44. Be4 {[%clk 0:00:11.2]}
44... Rg1 {[%clk 0:00:37.8]} 45. Qxf7+ {[%clk 0:00:10.8]} 45... Kh6 {[%clk
0:00:39]} 46. Qf6+ {[%clk 0:00:10.9]} 46... Kh5 {[%clk 0:00:39.9]} 47. Bf3+
{[%clk 0:00:11.5]} 1-0

[Event "*** Titled Tuesday 3|2 Blitz"]
[Site "Chess.com"]
[Date "2016.10.04"]
[Round "6"]
[White "RodinMihail"]
[Black "Houdinovic"]
[Result "0-1"]
[WhiteElo "2343"]
[BlackElo "2332"]
[TimeControl "180+2"]
[EndTime "12:14:36 PDT"]
[Termination "Houdinovic won by checkmate"]

1. e4 {[%clk 0:03:02]} 1... e6 {[%clk 0:03:01.5]} 2. d4 {[%clk 0:03:02.1]} 2...
d5 {[%clk 0:03:03.1]} 3. Nd2 {[%clk 0:03:03.5]} 3... Nc6 {[%clk 0:03:03.6]} 4.
c3 {[%clk 0:03:04]} 4... e5 {[%clk 0:03:04.3]} 5. exd5 {[%clk 0:03:05.4]} 5...
Qxd5 {[%clk 0:03:04.1]} 6. Ngf3 {[%clk 0:03:07]} 6... exd4 {[%clk 0:03:04.5]} 7.
Bc4 {[%clk 0:03:08.7]} 7... Qf5 {[%clk 0:03:05.8]} 8. O-O {[%clk 0:03:10.4]}
8... Be6 {[%clk 0:03:04.3]} 9. Bxe6 {[%clk 0:03:09.6]} 9... fxe6 {[%clk
0:03:04.9]} 10. cxd4 {[%clk 0:03:11.1]} 10... O-O-O {[%clk 0:03:05.4]} 11. Qa4
{[%clk 0:03:12.6]} 11... Qa5 {[%clk 0:02:55.3]} 12. Qxa5 {[%clk 0:03:02.6]}
12... Nxa5 {[%clk 0:02:57.2]} 13. Ng5 {[%clk 0:03:03.4]} 13... Rd7 {[%clk
0:02:47.8]} 14. Nxe6 {[%clk 0:03:01.8]} 14... Nf6 {[%clk 0:02:44.5]} 15. Nxf8
{[%clk 0:03:01.3]} 15... Rxf8 {[%clk 0:02:44.6]} 16. Nf3 {[%clk 0:03:03.2]}
16... Re8 {[%clk 0:02:40.5]} 17. b3 {[%clk 0:02:39.1]} 17... Nc6 {[%clk
0:02:36.9]} 18. Be3 {[%clk 0:02:37.5]} 18... Nd5 {[%clk 0:02:22.9]} 19. Rfe1
{[%clk 0:02:38.4]} 19... Ncb4 {[%clk 0:02:16.8]} 20. Bd2 {[%clk 0:02:34.2]}
20... Rxe1+ {[%clk 0:02:11.3]} 21. Rxe1 {[%clk 0:02:25.8]} 21... Nxa2 {[%clk
0:02:07.2]} 22. Ra1 {[%clk 0:02:26.7]} 22... Nab4 {[%clk 0:02:07.7]} 23. Rxa7
{[%clk 0:02:26.2]} 23... Kb8 {[%clk 0:01:46.8]} 24. Ra4 {[%clk 0:02:26.7]} 24...
Nc6 {[%clk 0:01:36.8]} 25. Kf1 {[%clk 0:02:25.8]} 25... Nb6 {[%clk 0:01:35.3]}
26. Ra3 {[%clk 0:02:02.4]} 26... Nxd4 {[%clk 0:01:35.4]} 27. Nxd4 {[%clk
0:02:03.5]} 27... Rxd4 {[%clk 0:01:37.3]} 28. Bc3 {[%clk 0:02:05.1]} 28... Rd7
{[%clk 0:01:31.4]} 29. Ra5 {[%clk 0:02:05.5]} 29... Nd5 {[%clk 0:01:30.9]} 30.
Bd2 {[%clk 0:01:54.7]} 30... b6 {[%clk 0:01:31.8]} 31. Ra4 {[%clk 0:01:51]}
31... Kb7 {[%clk 0:01:29.4]} 32. Ke2 {[%clk 0:01:48.9]} 32... c5 {[%clk
0:01:30.2]} 33. Rh4 {[%clk 0:01:48.6]} 33... g6 {[%clk 0:01:30.4]} 34. Re4
{[%clk 0:01:48.3]} 34... b5 {[%clk 0:01:27.3]} 35. f4 {[%clk 0:01:48.8]} 35...
Kc6 {[%clk 0:01:20.9]} 36. g4 {[%clk 0:01:44.6]} 36... Re7 {[%clk 0:01:17.3]}
37. Rxe7 {[%clk 0:01:45]} 37... Nxe7 {[%clk 0:01:19.2]} 38. Kd3 {[%clk 0:01:34]}
38... Kd5 {[%clk 0:01:20.3]} 39. Bc3 {[%clk 0:01:35.2]} 39... Nc6 {[%clk
0:00:45]} 40. h4 {[%clk 0:01:27.9]} 40... b4 {[%clk 0:00:43.7]} 41. Bf6 {[%clk
0:01:23.7]} 41... Na5 {[%clk 0:00:44]} 42. Kc2 {[%clk 0:01:24.9]} 42... c4
{[%clk 0:00:37.2]} 43. bxc4+ {[%clk 0:01:25.4]} 43... Nxc4 {[%clk 0:00:35.9]}
44. Kb3 {[%clk 0:01:23.7]} 44... Ne3 {[%clk 0:00:37]} 45. g5 {[%clk 0:01:15]}
45... Ke4 {[%clk 0:00:30.7]} 46. Be5 {[%clk 0:01:07.4]} 46... Nd5 {[%clk
0:00:30.5]} 47. Bd6 {[%clk 0:01:04.9]} 47... Kf5 {[%clk 0:00:27.6]} 48. Kc4
{[%clk 0:01:04.7]} 48... Nxf4 {[%clk 0:00:28.4]} 49. Kxb4 {[%clk 0:01:06.4]}
49... Ng2 {[%clk 0:00:28.3]} 50. Kc4 {[%clk 0:01:03.3]} 50... Nxh4 {[%clk
0:00:28.3]} 51. Be7 {[%clk 0:01:05.2]} 51... Nf3 {[%clk 0:00:29.3]} 52. Kd3
{[%clk 0:01:06.5]} 52... Nxg5 {[%clk 0:00:29.5]} 53. Ke3 {[%clk 0:01:08.4]}
53... h5 {[%clk 0:00:29]} 54. Kf2 {[%clk 0:01:09.2]} 54... Ne4+ {[%clk
0:00:29.9]} 55. Kf3 {[%clk 0:01:08.9]} 55... g5 {[%clk 0:00:29]} 56. Bd8 {[%clk
0:01:08.7]} 56... h4 {[%clk 0:00:27.8]} 57. Ke3 {[%clk 0:01:10.3]} 57... h3
{[%clk 0:00:28.4]} 58. Kf3 {[%clk 0:01:11.7]} 58... g4+ {[%clk 0:00:29.1]} 59.
Ke3 {[%clk 0:01:07.6]} 59... h2 {[%clk 0:00:29.3]} 60. Bc7 {[%clk 0:01:09.5]}
60... h1=Q {[%clk 0:00:30.3]} 61. Kd4 {[%clk 0:01:11.4]} 61... Qd1+ {[%clk
0:00:31.2]} 62. Kc4 {[%clk 0:01:11.9]} 62... Qc2+ {[%clk 0:00:31.8]} 63. Kd5
{[%clk 0:01:13.8]} 63... Qc5# {[%clk 0:00:32.1]} 0-1

[Event "*** Titled Tuesday 3|2 Blitz"]
[Site "Chess.com"]
[Date "2016.10.04"]
[Round "6"]
[White "QuintilianoR"]
[Black "ilya261991"]
[Result "0-1"]
[WhiteElo "2410"]
[BlackElo "2481"]
[TimeControl "180+2"]
[EndTime "12:14:37 PDT"]
[Termination "ilya261991 won by checkmate"]

1. d4 {[%clk 0:03:01.9]} 1... Nf6 {[%clk 0:03:00.5]} 2. Bf4 {[%clk 0:03:02.8]}
2... Rg8 {[%clk 0:03:00.3]} 3. Nf3 {[%clk 0:03:01]} 3... d6 {[%clk 0:02:59.8]}
4. c4 {[%clk 0:03:01.4]} 4... Nc6 {[%clk 0:03:00]} 5. d5 {[%clk 0:02:59.7]} 5...
Nb8 {[%clk 0:03:00.4]} 6. Nc3 {[%clk 0:03:00.1]} 6... e5 {[%clk 0:03:01.3]} 7.
dxe6 {[%clk 0:02:56.4]} 7... Bxe6 {[%clk 0:03:01.9]} 8. e3 {[%clk 0:02:57.3]}
8... Nc6 {[%clk 0:03:02.1]} 9. Be2 {[%clk 0:02:55.8]} 9... h6 {[%clk 0:03:03.3]}
10. h3 {[%clk 0:02:56.1]} 10... g5 {[%clk 0:03:04.7]} 11. Bh2 {[%clk 0:02:56.8]}
11... Qd7 {[%clk 0:03:05.3]} 12. Nd4 {[%clk 0:02:57.5]} 12... Nxd4 {[%clk
0:03:03.7]} 13. exd4 {[%clk 0:02:58.1]} 13... d5 {[%clk 0:02:59.5]} 14. Be5
{[%clk 0:02:54.6]} 14... Be7 {[%clk 0:02:46.9]} 15. c5 {[%clk 0:02:44.8]} 15...
c6 {[%clk 0:02:44.3]} 16. O-O {[%clk 0:02:24.8]} 16... Nh7 {[%clk 0:02:41.8]}
17. Bd3 {[%clk 0:02:24.3]} 17... Nf8 {[%clk 0:02:42]} 18. Qh5 {[%clk 0:02:11]}
18... g4 {[%clk 0:02:37.6]} 19. h4 {[%clk 0:02:08.1]} 19... Ng6 {[%clk
0:02:38.7]} 20. Rae1 {[%clk 0:01:58.1]} 20... Nxh4 {[%clk 0:02:28.6]} 21. Bh7
{[%clk 0:01:38.2]} 21... O-O-O {[%clk 0:02:15]} 22. Bxg8 {[%clk 0:01:37.9]}
22... Rxg8 {[%clk 0:02:16.5]} 23. Qxh6 {[%clk 0:01:38.3]} 23... b6 {[%clk
0:01:26]} 24. cxb6 {[%clk 0:01:36.1]} 24... axb6 {[%clk 0:01:27.9]} 25. Bg3
{[%clk 0:01:32.6]} 25... Nf5 {[%clk 0:01:26]} 26. Qf4 {[%clk 0:01:27.6]} 26...
Bd6 {[%clk 0:01:22.4]} 27. Qd2 {[%clk 0:01:16]} 27... Nxg3 {[%clk 0:01:15.4]}
28. fxg3 {[%clk 0:01:17.9]} 28... Bxg3 {[%clk 0:01:16.7]} 29. Re2 {[%clk
0:01:07.2]} 29... Qe7 {[%clk 0:01:04.3]} 30. Re3 {[%clk 0:00:40]} 30... Qh4
{[%clk 0:00:54.5]} 31. Rxg3 {[%clk 0:00:41]} 31... Qxg3 {[%clk 0:00:56.1]} 32.
Ne2 {[%clk 0:00:42]} 32... Qh4 {[%clk 0:00:52.9]} 33. Qd3 {[%clk 0:00:40.5]}
33... Rh8 {[%clk 0:00:52.8]} 34. Qa6+ {[%clk 0:00:41.4]} 34... Kc7 {[%clk
0:00:49.8]} 35. Qa7+ {[%clk 0:00:42.4]} 35... Kd6 {[%clk 0:00:50.7]} 36. Qxb6
{[%clk 0:00:33.2]} 36... Rh6 {[%clk 0:00:24.8]} 37. Rc1 {[%clk 0:00:14.7]} 37...
Qh1+ {[%clk 0:00:22.9]} 38. Kf2 {[%clk 0:00:15.9]} 38... Rf6+ {[%clk 0:00:24.5]}
39. Kg3 {[%clk 0:00:17.1]} 39... Rf3+ {[%clk 0:00:20.6]} 40. gxf3 {[%clk
0:00:17.8]} 40... Qxf3+ {[%clk 0:00:21.1]} 41. Kh4 {[%clk 0:00:18.9]} 41... Qf2+
{[%clk 0:00:12.3]} 42. Kg5 {[%clk 0:00:15.4]} 42... Qf5+ {[%clk 0:00:12]} 43.
Kh4 {[%clk 0:00:16.6]} 43... Qf2+ {[%clk 0:00:12.7]} 44. Ng3 {[%clk 0:00:17.8]}
44... Qh2+ {[%clk 0:00:13.5]} 45. Kg5 {[%clk 0:00:19.2]} 45... Qd2+ {[%clk
0:00:14.6]} 46. Kf6 {[%clk 0:00:20.3]} 46... Qh6# {[%clk 0:00:14]} 0-1

[Event "*** Titled Tuesday 3|2 Blitz"]
[Site "Chess.com"]
[Date "2016.10.04"]
[Round "6"]
[White "LuckyTiger"]
[Black "jcibarra"]
[Result "0-1"]
[WhiteElo "2569"]
[BlackElo "2704"]
[TimeControl "180+2"]
[EndTime "12:14:49 PDT"]
[Termination "jcibarra won by resignation"]

1. e4 {[%clk 0:03:01.9]} 1... e5 {[%clk 0:03:00.6]} 2. Nf3 {[%clk 0:03:03.1]}
2... Nc6 {[%clk 0:03:01.8]} 3. Bb5 {[%clk 0:03:04.3]} 3... g6 {[%clk 0:02:59.1]}
4. c3 {[%clk 0:02:25.1]} 4... a6 {[%clk 0:02:57.4]} 5. Bc4 {[%clk 0:02:14.7]}
5... Bg7 {[%clk 0:02:48.7]} 6. d4 {[%clk 0:02:13.9]} 6... d6 {[%clk 0:02:39.4]}
7. Be3 {[%clk 0:02:00.2]} 7... Nf6 {[%clk 0:02:27.9]} 8. dxe5 {[%clk 0:02:01]}
8... dxe5 {[%clk 0:02:28.2]} 9. Qxd8+ {[%clk 0:02:01.5]} 9... Nxd8 {[%clk
0:02:29.8]} 10. Nbd2 {[%clk 0:01:55.3]} 10... b5 {[%clk 0:02:26.8]} 11. Bb3
{[%clk 0:01:53.1]} 11... Bb7 {[%clk 0:02:28.4]} 12. Bc2 {[%clk 0:01:31.3]} 12...
Nd7 {[%clk 0:02:26.7]} 13. a4 {[%clk 0:01:25.2]} 13... Ne6 {[%clk 0:02:24.9]}
14. Nb3 {[%clk 0:01:25.2]} 14... O-O {[%clk 0:02:03.7]} 15. Na5 {[%clk
0:01:19.9]} 15... Bc8 {[%clk 0:02:04.6]} 16. Ke2 {[%clk 0:01:01.9]} 16... Ndc5
{[%clk 0:01:59.1]} 17. Rhd1 {[%clk 0:00:53.6]} 17... Nxa4 {[%clk 0:01:45.3]} 18.
Bxa4 {[%clk 0:00:51.8]} 18... bxa4 {[%clk 0:01:47.2]} 19. Rxa4 {[%clk
0:00:53.7]} 19... f6 {[%clk 0:01:31.5]} 20. Ne1 {[%clk 0:00:50.6]} 20... Rd8
{[%clk 0:01:27.4]} 21. Rxd8+ {[%clk 0:00:45.4]} 21... Nxd8 {[%clk 0:01:29.3]}
22. Rc4 {[%clk 0:00:45.9]} 22... Ne6 {[%clk 0:01:26.2]} 23. Nd3 {[%clk
0:00:45.6]} 23... Bd7 {[%clk 0:01:27]} 24. Nc5 {[%clk 0:00:45.3]} 24... Nxc5
{[%clk 0:01:23.2]} 25. Rxc5 {[%clk 0:00:47.2]} 25... Rc8 {[%clk 0:01:18]} 26.
Rd5 {[%clk 0:00:45.4]} 26... Be8 {[%clk 0:01:17.8]} 27. Bc5 {[%clk 0:00:39.6]}
27... Kf7 {[%clk 0:01:18.5]} 28. b4 {[%clk 0:00:37.8]} 28... Ke6 {[%clk
0:01:19.2]} 29. f3 {[%clk 0:00:38.7]} 29... h5 {[%clk 0:01:18.9]} 30. Nb7 {[%clk
0:00:29.9]} 30... Bb5+ {[%clk 0:01:10.7]} 31. Ke1 {[%clk 0:00:30.5]} 31... Kf7
{[%clk 0:01:01.2]} 32. Nd8+ {[%clk 0:00:29.1]} 32... Ke8 {[%clk 0:00:54.3]} 33.
Ne6 {[%clk 0:00:28.1]} 33... Bh6 {[%clk 0:00:55.2]} 34. Bf2 {[%clk 0:00:09.6]}
34... Bc4 {[%clk 0:00:55.2]} 35. Nc5 {[%clk 0:00:08.9]} 35... Bxd5 {[%clk
0:00:55.9]} 36. exd5 {[%clk 0:00:10.8]} 36... Ra8 {[%clk 0:00:55.3]} 37. Ke2
{[%clk 0:00:12.2]} 37... Bf8 {[%clk 0:00:56]} 38. Ne6 {[%clk 0:00:12.2]} 38...
Kd7 {[%clk 0:00:55.3]} 39. f4 {[%clk 0:00:11.6]} 39... Bd6 {[%clk 0:00:53.7]}
40. fxe5 {[%clk 0:00:09.8]} 40... fxe5 {[%clk 0:00:52.4]} 41. Be1 {[%clk
0:00:08.2]} 41... a5 {[%clk 0:00:53.5]} 42. bxa5 {[%clk 0:00:08.7]} 42... Rxa5
{[%clk 0:00:55.4]} 43. c4 {[%clk 0:00:09.9]} 43... Ra2+ {[%clk 0:00:56.6]} 44.
Kf3 {[%clk 0:00:11.3]} 44... e4+ {[%clk 0:00:56.7]} 45. Ke3 {[%clk 0:00:12.1]}
45... Bxh2 {[%clk 0:00:54.6]} 46. c5 {[%clk 0:00:11.2]} 46... c6 {[%clk
0:00:53.9]} 47. Nf8+ {[%clk 0:00:10.6]} 47... Ke7 {[%clk 0:00:46.1]} 48. Nxg6+
{[%clk 0:00:10.3]} 48... Kf6 {[%clk 0:00:47.7]} 49. Nf4 {[%clk 0:00:05.5]} 49...
Bxf4+ {[%clk 0:00:47.4]} 50. Kxf4 {[%clk 0:00:07.4]} 50... cxd5 {[%clk
0:00:49.1]} 51. Bc3+ {[%clk 0:00:07.2]} 51... Ke6 {[%clk 0:00:50.1]} 0-1

[Event "*** Titled Tuesday 3|2 Blitz"]
[Site "Chess.com"]
[Date "2016.10.04"]
[Round "6"]
[White "Sanan_Sjugirov"]
[Black "Gergo85"]
[Result "1-0"]
[WhiteElo "2685"]
[BlackElo "2445"]
[TimeControl "180+2"]
[EndTime "12:15:18 PDT"]
[Termination "Sanan_Sjugirov won by resignation"]

1. d4 {[%clk 0:03:01.9]} 1... f5 {[%clk 0:02:59.6]} 2. Nf3 {[%clk 0:03:02.1]}
2... Nf6 {[%clk 0:03:00.6]} 3. c4 {[%clk 0:03:03.7]} 3... g6 {[%clk 0:03:01.6]}
4. Nc3 {[%clk 0:03:04.1]} 4... Bg7 {[%clk 0:03:02.9]} 5. e3 {[%clk 0:03:04.4]}
5... O-O {[%clk 0:03:02.3]} 6. Be2 {[%clk 0:03:06]} 6... e6 {[%clk 0:03:01.4]}
7. O-O {[%clk 0:03:06.8]} 7... d5 {[%clk 0:03:02.6]} 8. b4 {[%clk 0:03:04.4]}
8... c6 {[%clk 0:03:00.1]} 9. a4 {[%clk 0:03:03.4]} 9... Ne4 {[%clk 0:03:01.1]}
10. Qb3 {[%clk 0:02:56.3]} 10... Nd7 {[%clk 0:02:56.6]} 11. Ba3 {[%clk
0:02:52.2]} 11... Rf7 {[%clk 0:02:49.2]} 12. Rac1 {[%clk 0:02:51.4]} 12... g5
{[%clk 0:02:47.1]} 13. Rfd1 {[%clk 0:02:45.5]} 13... g4 {[%clk 0:02:48.1]} 14.
Ne1 {[%clk 0:02:42.7]} 14... Ndf6 {[%clk 0:02:21.1]} 15. Nd3 {[%clk 0:02:27.3]}
15... Nxc3 {[%clk 0:02:22.1]} 16. Qxc3 {[%clk 0:02:29.2]} 16... Ne4 {[%clk
0:02:23.4]} 17. Qb3 {[%clk 0:02:23.6]} 17... Bd7 {[%clk 0:01:57.9]} 18. b5
{[%clk 0:02:24.3]} 18... Qh4 {[%clk 0:01:44.1]} 19. cxd5 {[%clk 0:02:03.4]}
19... exd5 {[%clk 0:01:32.1]} 20. a5 {[%clk 0:01:42.6]} 20... a6 {[%clk
0:00:58.4]} 21. bxa6 {[%clk 0:01:41.5]} 21... bxa6 {[%clk 0:00:59.1]} 22. g3
{[%clk 0:01:37]} 22... Qd8 {[%clk 0:00:54.6]} 23. Qb6 {[%clk 0:01:31.7]} 23...
h5 {[%clk 0:00:34.9]} 24. Qxd8+ {[%clk 0:01:27.8]} 24... Rxd8 {[%clk 0:00:35.6]}
25. Nc5 {[%clk 0:01:29]} 25... Nxc5 {[%clk 0:00:32.3]} 26. Bxc5 {[%clk
0:01:30.9]} 26... Bc8 {[%clk 0:00:33.6]} 27. Rb1 {[%clk 0:01:31.1]} 27... Bf8
{[%clk 0:00:32.6]} 28. Bxf8 {[%clk 0:01:24.4]} 28... Kxf8 {[%clk 0:00:33.3]} 29.
Rb8 {[%clk 0:01:24.6]} 29... Ke8 {[%clk 0:00:32.2]} 30. Rdb1 {[%clk 0:01:23.3]}
30... Ra7 {[%clk 0:00:33.1]} 31. Bd3 {[%clk 0:01:16.2]} 31... Bd7 {[%clk
0:00:27.2]} 32. Rxd8+ {[%clk 0:01:09.6]} 32... Kxd8 {[%clk 0:00:28.5]} 33. Rb6
{[%clk 0:01:06.9]} 33... Kc7 {[%clk 0:00:20.2]} 34. Kf1 {[%clk 0:01:07.6]} 34...
Rb7 {[%clk 0:00:15.6]} 35. Rxb7+ {[%clk 0:01:07.2]} 35... Kxb7 {[%clk
0:00:16.9]} 36. Ke2 {[%clk 0:01:08]} 36... Bc8 {[%clk 0:00:17.2]} 37. Bc2 {[%clk
0:00:58.5]} 37... c5 {[%clk 0:00:11.3]} 38. Ba4 {[%clk 0:00:59]} 38... c4 {[%clk
0:00:11.3]} 39. Kd2 {[%clk 0:00:56.2]} 39... Kc7 {[%clk 0:00:12.5]} 40. Be8
{[%clk 0:00:44.3]} 40... Bd7 {[%clk 0:00:06.9]} 41. Bxh5 {[%clk 0:00:44.6]}
41... Kd6 {[%clk 0:00:07.5]} 42. f3 {[%clk 0:00:41.5]} 42... Ke7 {[%clk
0:00:07.7]} 43. fxg4 {[%clk 0:00:42]} 43... fxg4 {[%clk 0:00:09.6]} 44. Bg6
{[%clk 0:00:41.1]} 44... Kf6 {[%clk 0:00:10.7]} 45. Bc2 {[%clk 0:00:41.7]} 45...
Ke6 {[%clk 0:00:10.1]} 46. e4 {[%clk 0:00:38.6]} 46... Kd6 {[%clk 0:00:08.6]}
47. Kc3 {[%clk 0:00:36.7]} 47... Be6 {[%clk 0:00:08.3]} 48. Kb4 {[%clk
0:00:34.6]} 48... Bf7 {[%clk 0:00:08]} 49. Kc3 {[%clk 0:00:30]} 49... Ke7 {[%clk
0:00:03.1]} 50. exd5 {[%clk 0:00:31]} 50... Bxd5 {[%clk 0:00:04.3]} 51. Bd1
{[%clk 0:00:32.3]} 51... Be6 {[%clk 0:00:05.1]} 52. Be2 {[%clk 0:00:33.4]} 52...
Kd6 {[%clk 0:00:06.3]} 53. Bxc4 {[%clk 0:00:34.4]} 53... Bc8 {[%clk 0:00:07.5]}
54. Kd3 {[%clk 0:00:34.3]} 54... Bb7 {[%clk 0:00:08.1]} 55. Ke3 {[%clk
0:00:35.6]} 55... Bc6 {[%clk 0:00:09.2]} 1-0

[Event "*** Titled Tuesday 3|2 Blitz"]
[Site "Chess.com"]
[Date "2016.10.04"]
[Round "6"]
[White "ftorodent"]
[Black "LyonBeast"]
[Result "0-1"]
[WhiteElo "2512"]
[BlackElo "2727"]
[TimeControl "180+2"]
[EndTime "12:15:24 PDT"]
[Termination "LyonBeast won on time"]

1. d4 {[%clk 0:03:01.9]} 1... Nf6 {[%clk 0:02:59.3]} 2. c4 {[%clk 0:03:03]} 2...
g6 {[%clk 0:02:59.9]} 3. Nc3 {[%clk 0:03:03.8]} 3... d5 {[%clk 0:03:01.2]} 4.
Nf3 {[%clk 0:03:02.8]} 4... Bg7 {[%clk 0:03:01.7]} 5. cxd5 {[%clk 0:03:03.8]}
5... Nxd5 {[%clk 0:03:02.8]} 6. Bg5 {[%clk 0:03:05.5]} 6... c5 {[%clk
0:03:00.4]} 7. Rc1 {[%clk 0:03:05.8]} 7... h6 {[%clk 0:02:57.7]} 8. Bh4 {[%clk
0:03:01.9]} 8... Nxc3 {[%clk 0:02:58.1]} 9. bxc3 {[%clk 0:03:02.7]} 9... Qa5
{[%clk 0:02:58.9]} 10. Qd2 {[%clk 0:03:02.7]} 10... Bf5 {[%clk 0:02:56.3]} 11.
e3 {[%clk 0:03:01.1]} 11... Nd7 {[%clk 0:02:54.7]} 12. Be2 {[%clk 0:02:56.3]}
12... g5 {[%clk 0:02:43]} 13. Bg3 {[%clk 0:02:56.7]} 13... O-O {[%clk
0:02:44.5]} 14. O-O {[%clk 0:02:32]} 14... Rac8 {[%clk 0:02:32.2]} 15. Qb2
{[%clk 0:02:29.5]} 15... Nb6 {[%clk 0:02:30.4]} 16. h4 {[%clk 0:02:21.2]} 16...
Bf6 {[%clk 0:02:03.2]} 17. hxg5 {[%clk 0:02:10.7]} 17... hxg5 {[%clk 0:02:05.1]}
18. Nd2 {[%clk 0:02:10.8]} 18... Na4 {[%clk 0:02:04.6]} 19. Qa3 {[%clk
0:01:49.9]} 19... b5 {[%clk 0:01:32.9]} 20. e4 {[%clk 0:01:37.1]} 20... Be6
{[%clk 0:01:32.5]} 21. e5 {[%clk 0:01:15.2]} 21... Bg7 {[%clk 0:01:30.6]} 22.
Ne4 {[%clk 0:01:15.7]} 22... cxd4 {[%clk 0:01:20.5]} 23. cxd4 {[%clk 0:01:14.8]}
23... b4 {[%clk 0:01:19.8]} 24. Qe3 {[%clk 0:01:11.4]} 24... Nc3 {[%clk
0:01:14.6]} 25. Bd3 {[%clk 0:00:51.1]} 25... Qxa2 {[%clk 0:00:38.8]} 26. Qxg5
{[%clk 0:00:26.6]} 26... Nxe4 {[%clk 0:00:38.9]} 27. Bxe4 {[%clk 0:00:26.6]}
27... Rxc1 {[%clk 0:00:40.8]} 28. Rxc1 {[%clk 0:00:27]} 28... Re8 {[%clk
0:00:42.5]} 29. Rd1 {[%clk 0:00:16.2]} 29... b3 {[%clk 0:00:37.9]} 30. d5 {[%clk
0:00:15.7]} 30... Bc8 {[%clk 0:00:24.1]} 31. e6 {[%clk 0:00:16.9]} 31... Qe2
{[%clk 0:00:20.8]} 32. Bf3 {[%clk 0:00:10.8]} 32... Qc2 {[%clk 0:00:21.1]} 33.
exf7+ {[%clk 0:00:09.6]} 33... Kxf7 {[%clk 0:00:23]} 34. Bh5+ {[%clk 0:00:10.7]}
34... Kf8 {[%clk 0:00:23.9]} 35. Be5 {[%clk 0:00:11.7]} 35... Bxe5 {[%clk
0:00:15.3]} 36. Qxe5 {[%clk 0:00:12.7]} 36... Qh7 {[%clk 0:00:15.4]} 37. Rd4
{[%clk 0:00:11.7]} 37... Rd8 {[%clk 0:00:08.5]} 38. Rf4+ {[%clk 0:00:12.2]}
38... Kg8 {[%clk 0:00:10.1]} 39. Rf3 {[%clk 0:00:08.9]} 39... b2 {[%clk
0:00:05.3]} 40. Rg3+ {[%clk 0:00:10]} 40... Kf8 {[%clk 0:00:06.8]} 41. Qf4+
{[%clk 0:00:11.3]} 41... Bf5 {[%clk 0:00:07.5]} 42. Rb3 {[%clk 0:00:08.3]} 42...
Qxh5 {[%clk 0:00:08.4]} 43. Rxb2 {[%clk 0:00:09.1]} 43... Rxd5 {[%clk
0:00:09.7]} 44. f3 {[%clk 0:00:09.3]} 44... Kg7 {[%clk 0:00:10.5]} 45. g4 {[%clk
0:00:10.2]} 45... Qh4 {[%clk 0:00:11.7]} 46. Kg2 {[%clk 0:00:05.6]} 46... Bg6
{[%clk 0:00:12.1]} 47. Re2 {[%clk 0:00:04.9]} 47... a5 {[%clk 0:00:12.5]} 48.
Qe3 {[%clk 0:00:04.4]} 48... Kf8 {[%clk 0:00:07.2]} 49. Qe6 {[%clk 0:00:03.8]}
49... Rd6 {[%clk 0:00:07.7]} 50. Qc8+ {[%clk 0:00:04.2]} 50... Be8 {[%clk
0:00:09]} 51. Qc5 {[%clk 0:00:03.4]} 51... a4 {[%clk 0:00:09.7]} 0-1